bitfinex-derivatives/quotes_BTCF0:USTF0_20251207
["timestamp","ask_amount","ask_price","bid_price","bid_amount"]
[1765105469253,0.3906,89260.0,89259.0,0.43177]
[1765105471153,0.001,89260.0,89259.0,0.43177]
[1765105471353,0.0158,89260.0,89259.0,0.43177]
[1765105477562,0.001,89260.0,89259.0,0.43177]
[1765105480350,0.3906,89260.0,89259.0,0.43177]
[1765105491668,0.3758,89260.0,89259.0,0.43177]
[1765105492269,0.3906,89260.0,89259.0,0.43177]
[1765105500586,0.361,89260.0,89259.0,0.43177]
[1765105501886,0.3758,89260.0,89259.0,0.43177]
[1765105502087,0.3906,89260.0,89259.0,0.43177]
[1765105503888,0.3906,89260.0,89259.0,0.07097]
[1765105506986,0.00016797,89277.0,89259.0,0.41626]
[1765105507191,0.0459,89286.0,89276.0,0.3608]
[1765105507391,0.07335,89286.0,89284.0,0.3608]
[1765105507683,0.07335,89286.0,89285.0,0.5194]
[1765105509890,0.08435,89286.0,89285.0,0.5194]
[1765105510093,0.08435,89286.0,89285.0,0.5596111]
[1765105510478,0.08435,89286.0,89285.0,0.5194]
[1765105510689,0.08435,89286.0,89285.0,0.55960831]
[1765105511091,0.08435,89286.0,89285.0,0.5194]
[1765105511782,0.05574,89285.0,89284.0,0.40100831]
[1765105512492,0.05574,89285.0,89284.0,0.3608]
[1765105512789,0.06174,89285.0,89284.0,0.3608]
[1765105513090,0.06474,89285.0,89284.0,0.3608]
[1765105513484,0.48474,89285.0,89284.0,0.3608]
[1765105513693,0.05662,89278.0,89277.0,0.03030254]
[1765105513898,0.47662,89278.0,89277.0,0.00016797]
[1765105514194,0.05662,89273.0,89271.0,0.03013457]
[1765105514492,0.07325,89272.0,89270.0,0.03013457]
[1765105514794,0.07325,89272.0,89266.0,0.39094179]
[1765105514795,0.05662,89267.0,89266.0,0.39094179]
[1765105515194,0.05662,89267.0,89266.0,0.3608]
[1765105515692,0.05662,89267.0,89266.0,0.39094203]
[1765105516196,0.05662,89267.0,89266.0,0.3608]
[1765105516394,0.05662,89267.0,89266.0,0.39094237]
[1765105516597,0.05662,89267.0,89266.0,0.3608]
[1765105517688,0.45662,89267.0,89266.0,0.3608]
[1765105518692,0.05662,89265.0,89264.0,0.03014237]
[1765105518892,0.07325,89264.0,89263.0,0.39094237]
[1765105519094,0.50325,89264.0,89263.0,0.39094237]
[1765105520298,0.50325,89264.0,89263.0,0.3618]
[1765105520499,0.50325,89264.0,89263.0,0.39194742]
[1765105521201,0.50325,89264.0,89263.0,0.3618]
[1765105522500,0.50325,89264.0,89263.0,0.39194941]
[1765105523701,0.50325,89264.0,89263.0,0.39094941]
[1765105526703,0.50325,89264.0,89263.0,0.3608]
[1765105535515,0.50425,89264.0,89263.0,0.3608]
[1765105536614,0.50525,89264.0,89263.0,0.3608]
[1765105537015,0.50425,89264.0,89263.0,0.3608]
[1765105537614,0.50525,89264.0,89263.0,0.3608]
[1765105541112,0.50525,89264.0,89263.0,0.40100831]
[1765105542109,0.50525,89264.0,89263.0,0.3608]
[1765105543314,0.05728,89263.0,89262.0,0.06041676]
[1765105543516,0.45728,89263.0,89262.0,0.06041676]
[1765105544215,0.0727,89262.0,89261.0,0.3608]
[1765105544411,0.4827,89262.0,89261.0,0.3608]
[1765105546211,0.4837,89262.0,89261.0,0.3608]
[1765105546410,0.4847,89262.0,89261.0,0.3608]
[1765105546717,0.4837,89262.0,89261.0,0.3608]
[1765105546909,0.4847,89262.0,89261.0,0.3608]
[1765105547109,0.4837,89262.0,89261.0,0.3608]
[1765105547415,0.4847,89262.0,89261.0,0.3608]
[1765105558526,0.1347,89262.0,89261.0,0.3608]
[1765105560318,0.0747,89262.0,89261.0,0.3608]
[1765105561722,0.0737,89262.0,89261.0,0.3608]
[1765105562522,0.0727,89262.0,89261.0,0.3618]
[1765105563426,0.4227,89262.0,89261.0,0.3618]
[1765105564623,0.4227,89262.0,89261.0,0.3608]
[1765105564827,0.4247,89262.0,89261.0,0.3608]
[1765105565428,0.1047,89262.0,89261.0,0.3608]
[1765105567322,0.1037,89262.0,89261.0,0.3608]
[1765105567726,0.5027,89262.0,89261.0,0.3608]
[1765105568129,0.0727,89262.0,89261.0,0.3608]
[1765105568829,0.0737,89262.0,89261.0,0.3608]
[1765105569031,0.0747,89262.0,89261.0,0.3608]
[1765105571427,0.002,89262.0,89261.0,0.3608]
[1765105572131,0.0168,89266.0,89261.0,0.89527772]
[1765105572331,0.04627,89266.0,89265.0,0.0806337]
[1765105572534,0.04627,89266.0,89265.0,1.0099937]
[1765105572731,0.04627,89266.0,89265.0,0.92936]
[1765105573430,0.04627,89266.0,89265.0,1.00996892]
[1765105574739,0.04627,89266.0,89265.0,1.01096892]
[1765105575428,0.00016797,89275.0,89265.0,1.37447018]
[1765105575636,0.00016797,89275.0,89274.0,0.3608]
[1765105575841,0.00016797,89275.0,89274.0,1.30024]
[1765105576223,0.00016797,89275.0,89274.0,1.38076375]
[1765105576631,0.00016797,89275.0,89274.0,1.30024]
[1765105577028,0.00116797,89275.0,89274.0,1.30024]
[1765105578042,0.01766,89295.0,89274.0,1.70024]
[1765105578341,0.04713,89295.0,89293.0,0.3608]
[1765105578639,0.04713,89295.0,89294.0,0.5194]
[1765105580842,0.01766,89295.0,89294.0,0.5194]
[1765105581036,0.01866,89295.0,89294.0,0.5194]
[1765105581842,0.04713,89295.0,89294.0,0.5194]
[1765105582343,0.07685,89295.0,89294.0,0.5194]
[1765105582735,0.07685,89295.0,89293.0,0.3608]
[1765105582941,0.05919,89294.0,89293.0,0.5708]
[1765105583245,0.05919,89294.0,89293.0,0.83664]
[1765105583542,0.48919,89294.0,89293.0,0.88044]
[1765105584130,0.48919,89294.0,89293.0,0.88244]
[1765105584633,0.48919,89294.0,89293.0,0.8824]
[1765105585236,0.48919,89294.0,89293.0,0.3628]
[1765105585435,0.48919,89294.0,89293.0,0.8824]
[1765105585940,0.48919,89294.0,89293.0,0.8804]
[1765105586141,0.48919,89294.0,89293.0,0.8814]
[1765105586946,0.48919,89294.0,89293.0,0.3618]
[1765105587335,0.48919,89294.0,89293.0,0.001]
[1765105587535,0.49019,89294.0,89293.0,0.001]
[1765105588241,0.48919,89294.0,89293.0,0.001]
[1765105588441,0.49019,89294.0,89293.0,0.001]
[1765105589140,0.07685,89288.0,89287.0,0.3608]
[1765105589338,0.47685,89288.0,89287.0,0.3608]
[1765105590439,0.47685,89288.0,89287.0,0.3618]
[1765105591743,0.47685,89288.0,89287.0,0.7718]
[1765105591744,0.07685,89288.0,89287.0,0.7718]
[1765105593445,0.04713,89288.0,89287.0,0.7718]
[1765105593743,0.07685,89288.0,89287.0,0.7718]
[1765105594847,0.07685,89288.0,89287.0,0.3618]
[1765105597247,0.07685,89288.0,89287.0,0.39198206]
[1765105598353,0.07685,89288.0,89287.0,0.3618]
[1765105599952,0.07685,89288.0,89287.0,0.3608]
[1765105600251,0.07685,89288.0,89287.0,0.3618]
[1765105601252,0.07685,89288.0,89287.0,0.40204275]
[1765105603256,0.07685,89288.0,89287.0,0.3618]
[1765105609857,0.01766,89288.0,89287.0,0.7818]
[1765105610262,0.04707,89288.0,89287.0,0.7818]
[1765105610559,0.04707,89288.0,89287.0,0.7808]
[1765105610757,0.04707,89288.0,89287.0,0.7818]
[1765105610954,0.01766,89292.0,89287.0,0.7818]
[1765105611160,0.04707,89292.0,89290.0,0.06042702]
[1765105611359,0.07612,89292.0,89290.0,0.06042702]
[1765105612755,0.07612,89292.0,89291.0,0.51948]
[1765105613360,0.07612,89292.0,89291.0,0.57990702]
[1765105613855,0.07612,89292.0,89291.0,0.58090702]
[1765105618461,0.07612,89292.0,89291.0,0.58086702]
[1765105619860,0.04707,89292.0,89291.0,0.58086702]
[1765105620065,0.01766,89295.0,89291.0,0.52044]
[1765105620268,0.01766,89295.0,89293.0,0.06043869]
[1765105620765,0.04559,89295.0,89293.0,0.06043869]
[1765105621365,0.07384,89295.0,89293.0,0.06043869]
[1765105621570,0.07384,89295.0,89291.0,0.52044]
[1765105621758,0.01766,89298.0,89291.0,0.87044]
[1765105622166,0.04559,89298.0,89291.0,0.87044]
[1765105622369,0.07384,89298.0,89291.0,0.87044]
[1765105623060,0.07384,89298.0,89295.0,0.3608]
[1765105623266,0.07384,89298.0,89295.0,0.7508]
[1765105624266,0.07384,89298.0,89295.0,0.7518]
[1765105625471,0.07384,89298.0,89297.0,0.06038894]
[1765105625970,0.07384,89298.0,89295.0,0.3618]
[1765105626169,0.07384,89298.0,89295.0,0.7718]
[1765105626370,0.07384,89298.0,89297.0,0.06038271]
[1765105626570,0.07384,89298.0,89295.0,0.7718]
[1765105626571,0.07384,89298.0,89295.0,0.40205534]
[1765105626770,0.07384,89298.0,89295.0,0.75105534]
[1765105626972,0.07384,89298.0,89297.0,0.001]
[1765105627571,0.07484,89298.0,89297.0,0.001]
[1765105629370,0.07484,89298.0,89296.0,0.04025534]
[1765105629671,0.07484,89298.0,89297.0,0.04025534]
[1765105630168,0.07484,89298.0,89297.0,0.04125534]
[1765105630362,0.07484,89298.0,89297.0,0.04124485]
[1765105630565,0.07484,89298.0,89295.0,0.3608]
[1765105630763,0.07384,89298.0,89296.0,0.001]
[1765105631074,0.07384,89298.0,89296.0,0.411]
[1765105631374,0.07384,89298.0,89297.0,0.04124266]
[1765105632469,0.07484,89298.0,89297.0,0.04124266]
[1765105632876,0.07484,89298.0,89297.0,0.04024266]
[1765105634076,0.07484,89298.0,89297.0,0.04124266]
[1765105634277,0.07484,89298.0,89297.0,0.001]
[1765105635079,0.07484,89298.0,89297.0,0.55050411]
[1765105636472,0.07484,89298.0,89297.0,0.55050967]
[1765105636774,0.46484,89298.0,89297.0,0.001]
[1765105636970,0.46484,89298.0,89297.0,0.52032]
[1765105638069,0.46484,89298.0,89297.0,0.001]
[1765105641781,0.05898,89296.0,89295.0,0.3608]
[1765105641982,0.42898,89296.0,89295.0,0.3608]
[1765105643182,0.42898,89296.0,89295.0,0.3618]
[1765105644369,0.43098,89296.0,89295.0,0.3618]
[1765105644574,0.43098,89296.0,89295.0,0.001]
[1765105645485,0.43098,89296.0,89295.0,0.03120123]
[1765105645978,0.43098,89296.0,89295.0,0.001]
[1765105646173,0.05898,89292.0,89291.0,0.40105344]
[1765105646373,0.45571,89292.0,89291.0,0.40105344]
[1765105646675,0.45571,89292.0,89291.0,0.3608]
[1765105647173,0.45771,89292.0,89291.0,0.3608]
[1765105647372,0.45971,89292.0,89291.0,0.3608]
[1765105649295,0.45971,89292.0,89291.0,0.40106235]
[1765105649498,0.45871,89292.0,89291.0,0.40106235]
[1765105649794,0.45771,89292.0,89291.0,0.40106235]
[1765105659301,0.45771,89292.0,89291.0,0.3608]
[1765105666303,0.45771,89292.0,89291.0,0.42118271]
[1765105666706,0.45771,89292.0,89291.0,0.3608]
[1765105670507,0.05477,89287.0,89286.0,0.00016797]
[1765105670705,0.32477,89287.0,89286.0,0.00016797]
[1765105670906,0.10477,89287.0,89286.0,0.00016797]
[1765105671499,0.29477,89287.0,89286.0,0.00016797]
[1765105671705,0.29577,89287.0,89286.0,0.00016797]
[1765105671901,0.05577,89287.0,89286.0,0.00016797]
[1765105672207,0.06577,89287.0,89286.0,0.00016797]
[1765105673407,0.06577,89287.0,89286.0,0.36096797]
[1765105674911,0.05577,89287.0,89286.0,0.36096797]
[1765105675112,0.30577,89287.0,89286.0,0.36096797]
[1765105675514,0.30577,89287.0,89286.0,0.00016797]
[1765105675808,0.30577,89287.0,89286.0,0.36096797]
[1765105676015,0.05577,89287.0,89286.0,0.36096797]
[1765105676215,0.08577,89287.0,89286.0,0.36096797]
[1765105678716,0.34577,89287.0,89286.0,0.36096797]
[1765105679213,0.34577,89287.0,89286.0,0.00016797]
[1765105679417,0.34577,89287.0,89286.0,0.36096797]
[1765105680914,0.05577,89287.0,89286.0,0.36096797]
[1765105681115,0.17577,89287.0,89286.0,0.36096797]
[1765105681415,0.46577,89287.0,89286.0,0.36096797]
[1765105681910,0.46577,89287.0,89286.0,0.00016797]
[1765105682116,0.46577,89287.0,89286.0,0.36096797]
[1765105684516,0.05577,89287.0,89286.0,0.36096797]
[1765105684815,0.05577,89287.0,89286.0,0.88020797]
[1765105691523,0.05577,89287.0,89286.0,0.51940797]
[1765105691720,0.05577,89287.0,89286.0,0.88020797]
[1765105703726,0.05577,89287.0,89286.0,1.29020797]
[1765105704730,0.05477,89287.0,89286.0,1.29020797]
[1765105705630,0.05477,89287.0,89286.0,1.29120797]
[1765105709332,0.05477,89287.0,89286.0,0.93040797]
[1765105709637,0.05477,89287.0,89286.0,1.65200797]
[1765105712738,0.01631,89288.0,89286.0,1.65200797]
[1765105713035,0.07191,89288.0,89286.0,1.65200797]
[1765105714637,0.07191,89288.0,89286.0,1.65100797]
[1765105714838,0.07191,89288.0,89286.0,1.65200797]
[1765105716237,0.07191,89288.0,89286.0,0.93040797]
[1765105716639,0.07191,89288.0,89287.0,0.78207048]
[1765105716836,0.07191,89288.0,89287.0,1.19207048]
[1765105717531,0.07191,89288.0,89287.0,1.1316]
[1765105718240,0.07191,89288.0,89287.0,1.1326]
[1765105722444,0.07191,89288.0,89287.0,1.19307183]
[1765105725246,0.07191,89288.0,89287.0,1.1326]
[1765105731350,0.07191,89288.0,89287.0,0.8826]
[1765105731951,0.07191,89288.0,89287.0,0.5218]
[1765105732649,0.04353,89288.0,89287.0,0.7718]
[1765105736056,0.01631,89288.0,89287.0,0.7718]
[1765105736949,0.01673,89292.0,89287.0,0.81614373]
[1765105737150,0.01673,89292.0,89288.0,0.08064962]
[1765105737355,0.01673,89292.0,89288.0,0.49064962]
[1765105737652,0.04393,89292.0,89288.0,0.49064962]
[1765105737849,0.07271,89292.0,89288.0,0.49064962]
[1765105738858,0.01683,89290.0,89288.0,0.49064962]
[1765105739053,0.07281,89290.0,89289.0,0.5192]
[1765105739256,0.07281,89290.0,89289.0,0.9292]
[1765105740153,0.07281,89290.0,89289.0,1.6508]
[1765105740958,0.07281,89290.0,89289.0,1.6518]
[1765105741149,0.01683,89290.0,89289.0,1.6538]
[1765105741354,0.01673,89292.0,89289.0,1.6538]
[1765105741548,0.01683,89296.0,89291.0,0.08061658]
[1765105741758,0.01683,89296.0,89291.0,0.43061658]
[1765105742060,0.07362,89296.0,89291.0,0.43061658]
[1765105742853,0.07362,89296.0,89291.0,0.43161658]
[1765105743256,0.07362,89296.0,89291.0,0.351]
[1765105744471,0.01683,89296.0,89291.0,0.351]
[1765105744873,0.04477,89296.0,89291.0,0.351]
[1765105745066,0.07362,89296.0,89291.0,0.351]
[1765105746767,0.07362,89296.0,89291.0,0.43161658]
[1765105746971,0.07362,89296.0,89294.0,0.08061658]
[1765105747271,0.07362,89296.0,89295.0,0.51916]
[1765105747471,0.07362,89296.0,89295.0,0.86916]
[1765105751275,0.04477,89296.0,89295.0,0.86916]
[1765105751580,0.01683,89296.0,89295.0,0.86916]
[1765105752381,0.00520976,89296.0,89295.0,0.86916]
[1765105752984,0.03393976,89296.0,89295.0,0.86916]
[1765105753184,0.06368976,89296.0,89295.0,0.86916]
[1765105758481,0.03393976,89296.0,89295.0,0.86916]
[1765105758686,0.04615,89300.0,89295.0,0.86916]
[1765105758980,0.01693,89302.0,89299.0,0.3608]
[1765105759182,0.07541,89302.0,89300.0,0.51916]
[1765105759382,0.07541,89302.0,89300.0,0.86916]
[1765105760487,0.07641,89302.0,89300.0,0.86916]
[1765105760788,0.07741,89302.0,89300.0,0.86916]
[1765105761288,0.07741,89302.0,89300.0,0.35]
[1765105761487,0.07741,89302.0,89301.0,0.51916]
[1765105761687,0.07741,89302.0,89301.0,0.86916]
[1765105770595,0.04566,89308.0,89301.0,0.86916]
[1765105770890,0.07541,89308.0,89307.0,0.3608]
[1765105771097,0.07541,89308.0,89307.0,0.87992]
[1765105771890,0.07641,89308.0,89307.0,0.87992]
[1765105772292,0.07741,89308.0,89307.0,0.94032269]
[1765105772597,0.07841,89308.0,89307.0,0.94032269]
[1765105772801,0.07741,89308.0,89307.0,0.94032269]
[1765105772996,0.08041,89308.0,89307.0,0.94032269]
[1765105773997,0.08041,89308.0,89307.0,0.42120269]
[1765105774299,0.08041,89308.0,89307.0,0.94032269]
[1765105775201,0.08041,89308.0,89307.0,0.87992]
[1765105777098,0.08041,89308.0,89307.0,0.3608]
[1765105777401,0.08041,89308.0,89307.0,0.87992]
[1765105790713,0.08041,89308.0,89307.0,0.87988]
[1765105795920,0.08041,89308.0,89307.0,0.3608]
[1765105796111,0.08041,89308.0,89307.0,0.87988]
[1765105797819,0.08041,89308.0,89307.0,0.3608]
[1765105798020,0.08041,89308.0,89307.0,0.87988]
[1765105799728,0.08041,89308.0,89307.0,0.3608]
[1765105799914,0.08041,89308.0,89307.0,0.87988]
[1765105800921,0.08041,89308.0,89307.0,0.3608]
[1765105801123,0.08041,89308.0,89307.0,0.87988]
[1765105802227,0.51041,89308.0,89307.0,0.3608]
[1765105802423,0.07197,89306.0,89305.0,0.06040653]
[1765105802616,0.07197,89302.0,89301.0,0.3608]
[1765105802925,0.44197,89302.0,89301.0,0.3608]
[1765105804216,0.44297,89302.0,89301.0,0.3608]
[1765105804816,0.05524,89299.0,89298.0,0.06039731]
[1765105805012,0.07197,89298.0,89297.0,0.04025235]
[1765105805315,0.05524,89296.0,89295.0,0.56433235]
[1765105805518,0.44524,89296.0,89295.0,0.56433235]
[1765105805719,0.44524,89296.0,89295.0,0.005]
[1765105806917,0.44524,89296.0,89295.0,0.006]
[1765105807323,0.44524,89296.0,89295.0,0.03615806]
[1765105807523,0.44524,89296.0,89295.0,0.006]
[1765105809223,0.44724,89296.0,89295.0,0.006]
[1765105809928,0.44724,89296.0,89295.0,0.005]
[1765105810130,0.44924,89296.0,89295.0,0.005]
[1765105810530,0.44724,89296.0,89295.0,0.005]
[1765105810733,0.44824,89296.0,89295.0,0.005]
[1765105811331,0.44724,89296.0,89295.0,0.005]
[1765105812625,0.44624,89296.0,89295.0,0.005]
[1765105812822,0.44724,89296.0,89295.0,0.005]
[1765105814530,0.44624,89296.0,89295.0,0.005]
[1765105815839,0.44524,89296.0,89295.0,0.005]
[1765105817436,0.44624,89296.0,89295.0,0.03513047]
[1765105818138,0.44624,89296.0,89295.0,0.005]
[1765105821038,0.44524,89296.0,89295.0,0.005]
[1765105821338,0.44624,89296.0,89295.0,0.005]
[1765105823537,0.44524,89296.0,89295.0,0.005]
[1765105823737,0.44524,89296.0,89295.0,0.03514124]
[1765105823738,0.44624,89296.0,89295.0,0.03514124]
[1765105824240,0.07387,89292.0,89291.0,0.40105235]
[1765105824445,0.46387,89292.0,89291.0,0.3608]
[1765105825340,0.46487,89292.0,89291.0,0.3608]
[1765105825732,0.46587,89292.0,89291.0,0.3608]
[1765105826345,0.46587,89292.0,89291.0,0.40105235]
[1765105826741,0.46587,89292.0,89291.0,0.3608]
[1765105827447,0.46487,89292.0,89291.0,0.3608]
[1765105827945,0.46587,89292.0,89291.0,0.3608]
[1765105831549,0.46587,89292.0,89291.0,0.40101643]
[1765105832245,0.46587,89292.0,89291.0,0.3608]
[1765105834052,0.46687,89292.0,89291.0,0.3608]
[1765105834754,0.46787,89292.0,89291.0,0.3608]
[1765105841970,0.46787,89292.0,89291.0,0.4010643]
[1765105844670,0.46787,89292.0,89291.0,0.0402643]
[1765105845073,0.46787,89292.0,89290.0,0.0402643]
[1765105845258,0.05705,89291.0,89290.0,0.0402643]
[1765105845572,0.05705,89287.0,89286.0,0.06056528]
[1765105845772,0.46705,89287.0,89286.0,0.06056528]
[1765105847065,0.46805,89287.0,89286.0,0.06056528]
[1765105847675,0.46905,89287.0,89286.0,0.06056528]
[1765105848372,0.46805,89287.0,89286.0,0.06056528]
[1765105848669,0.46805,89287.0,89286.0,0.00016797]
[1765105848875,0.07491,89284.0,89283.0,0.42119731]
[1765105849071,0.44491,89284.0,89283.0,0.3608]
[1765105849577,0.44491,89284.0,89283.0,0.40108055]
[1765105849977,0.44491,89284.0,89283.0,0.3608]
[1765105850179,0.44691,89284.0,89283.0,0.3608]
[1765105850371,0.44691,89284.0,89283.0,0.40107648]
[1765105850976,0.45091,89284.0,89283.0,0.40107648]
[1765105851577,0.45191,89284.0,89283.0,0.40107648]
[1765105851877,0.45191,89284.0,89283.0,0.3608]
[1765105852473,0.44891,89284.0,89283.0,0.3608]
[1765105852681,0.45191,89284.0,89283.0,0.3608]
[1765105853072,0.44791,89284.0,89283.0,0.3608]
[1765105853273,0.45091,89284.0,89283.0,0.3608]
[1765105853880,0.44791,89284.0,89283.0,0.3608]
[1765105854274,0.44491,89284.0,89283.0,0.3608]
[1765105854474,0.44591,89284.0,89283.0,0.3608]
[1765105863884,0.44491,89284.0,89283.0,0.3608]
[1765105864183,0.44591,89284.0,89283.0,0.3608]
[1765105864682,0.44491,89284.0,89283.0,0.3608]
[1765105864883,0.44591,89284.0,89283.0,0.3608]
[1765105875789,0.44491,89284.0,89283.0,0.3608]
[1765105875979,0.44591,89284.0,89283.0,0.3608]
[1765105878496,0.44591,89284.0,89283.0,0.42119731]
[1765105879500,0.44491,89284.0,89283.0,0.42119731]
[1765105885790,0.44591,89284.0,89283.0,0.42119731]
[1765105886900,0.44491,89284.0,89283.0,0.42119731]
[1765105887106,0.44591,89284.0,89283.0,0.42119731]
[1765105891796,0.44491,89284.0,89283.0,0.42119731]
[1765105892005,0.44591,89284.0,89283.0,0.42119731]
[1765105894898,0.44591,89284.0,89283.0,0.06039731]
[1765105895098,0.44691,89284.0,89283.0,0.06039731]
[1765105895606,0.44591,89284.0,89283.0,0.06039731]
[1765105895807,0.44691,89284.0,89283.0,0.06039731]
[1765105898098,0.44591,89284.0,89283.0,0.06039731]
[1765105898298,0.44691,89284.0,89283.0,0.06039731]
[1765105901204,0.44591,89284.0,89283.0,0.06039731]
[1765105901713,0.44691,89284.0,89283.0,0.06039731]
[1765105901920,0.44591,89284.0,89283.0,0.06039731]
[1765105902113,0.44691,89284.0,89283.0,0.06039731]
[1765105906820,0.05828,89283.0,89282.0,0.3608]
[1765105907014,0.47828,89283.0,89282.0,0.3608]
[1765105908115,0.47928,89283.0,89282.0,0.3608]
[1765105908415,0.48028,89283.0,89282.0,0.3608]
[1765105912112,0.07483,89280.0,89279.0,0.06039731]
[1765105912313,0.05828,89279.0,89277.0,0.06039731]
[1765105912622,0.07483,89278.0,89277.0,0.06039731]
[1765105915332,0.05686,89277.0,89276.0,0.06039731]
[1765105915512,0.07306,89276.0,89275.0,0.00016797]
[1765105916926,0.07306,89276.0,89275.0,0.00116797]
[1765105921017,0.07306,89276.0,89275.0,0.00016797]
[1765105921327,0.07306,89276.0,89275.0,0.00116797]
[1765105930133,0.07306,89276.0,89275.0,0.00016797]
[1765105930435,0.07306,89276.0,89275.0,0.00116797]
[1765105939233,0.45306,89276.0,89275.0,0.00116797]
[1765105939443,0.05803,89267.0,89266.0,0.08061658]
[1765105939733,0.07457,89264.0,89263.0,0.37217891]
[1765105939935,0.49457,89264.0,89263.0,0.3608]
[1765105941233,0.49457,89264.0,89263.0,0.3628]
[1765105942430,0.49557,89264.0,89263.0,0.4232355]
[1765105942637,0.49557,89264.0,89263.0,0.4212355]
[1765105942831,0.49657,89264.0,89263.0,0.4212355]
[1765105943133,0.10657,89264.0,89263.0,0.4785755]
[1765105944231,0.10657,89264.0,89263.0,0.41814]
[1765105945725,0.48657,89264.0,89263.0,0.41814]
[1765105947837,0.21657,89264.0,89263.0,0.41814]
[1765105953748,0.43657,89264.0,89263.0,0.41814]
[1765105965345,0.16657,89264.0,89263.0,0.4785755]
[1765105967454,0.16657,89264.0,89263.0,0.41814]
[1765105974061,0.45657,89264.0,89263.0,0.41814]
[1765105975363,0.45657,89264.0,89263.0,0.3608]
[1765105976171,0.45657,89264.0,89258.0,0.13527658]
[1765105976172,0.05769,89259.0,89258.0,0.13527658]
[1765105979566,0.05769,89259.0,89258.0,0.08061658]
[1765105979768,0.07404,89254.0,89253.0,0.3158]
[1765105979975,0.0715,89247.0,89246.0,0.00028013]
[1765105980175,0.5015,89247.0,89246.0,0.00028013]
[1765105980871,0.5015,89247.0,89246.0,0.02759013]
[1765105981272,0.5015,89247.0,89246.0,0.03059013]
[1765105981673,0.5015,89247.0,89246.0,0.06010013]
[1765105982678,0.5015,89247.0,89246.0,0.06110013]
[1765105983376,0.5015,89247.0,89246.0,0.10136987]
[1765105983776,0.5015,89247.0,89246.0,0.06110013]
[1765105984484,0.5015,89247.0,89246.0,0.04453895]
[1765105984666,0.5015,89247.0,89246.0,0.00428013]
[1765105985380,0.5015,89247.0,89246.0,0.03447419]
[1765105985579,0.5015,89247.0,89246.0,0.06409419]
[1765105985781,0.5015,89247.0,89246.0,0.06341013]
[1765105985988,0.5015,89247.0,89246.0,0.03390013]
[1765105986283,0.5015,89247.0,89246.0,0.00428013]
[1765105989379,0.5015,89247.0,89242.0,0.00010012]
[1765105989380,0.05631,89243.0,89242.0,0.00010012]
[1765105989579,0.48631,89243.0,89242.0,0.00010012]
[1765105990482,0.48631,89243.0,89242.0,0.01761498]
[1765105990883,0.48631,89243.0,89242.0,0.02361498]
[1765105999984,0.48631,89243.0,89242.0,0.0015561]
[1765106000892,0.48644064,89243.0,89239.0,0.03019406]
[1765106001190,0.05701,89240.0,89239.0,0.03019406]
[1765106001486,0.46701,89240.0,89239.0,0.03019406]
[1765106002191,0.46701,89240.0,89239.0,0.03319406]
[1765106002384,0.46701,89240.0,89239.0,0.003]
[1765106003383,0.46701,89240.0,89234.0,0.3608]
[1765106003384,0.46701,89240.0,89236.0,0.04025882]
[1765106003584,0.46701,89240.0,89239.0,0.004]
[1765106004392,0.46701,89240.0,89239.0,0.002]
[1765106004597,0.07342,89238.0,89237.0,0.06854882]
[1765106004887,0.46342,89238.0,89237.0,0.06854882]
[1765106005094,0.46342,89238.0,89237.0,0.09654882]
[1765106006392,0.46342,89238.0,89237.0,0.05629]
[1765106006795,0.46342,89238.0,89237.0,0.05829]
[1765106007094,0.46342,89238.0,89237.0,0.06029]
[1765106008298,0.46342,89238.0,89237.0,0.03229]
[1765106009398,0.46342,89238.0,89237.0,0.06029]
[1765106010590,0.46342,89238.0,89237.0,0.03229]
[1765106013701,0.46342,89238.0,89237.0,0.06029]
[1765106014303,0.15701,89238.0,89237.0,0.06029]
[1765106015305,0.05701,89238.0,89237.0,0.06029]
[1765106017798,0.40701,89238.0,89237.0,0.06029]
[1765106019106,0.42202,89238.0,89237.0,0.06029]
[1765106020610,0.42202,89238.0,89237.0,0.03229]
[1765106022008,0.42202,89238.0,89237.0,0.0596]
[1765106022208,0.03009064,89243.0,89242.0,0.05642]
[1765106022510,0.47777064,89243.0,89242.0,0.41722]
[1765106022805,0.25777064,89243.0,89242.0,0.41722]
[1765106023006,0.05777064,89243.0,89242.0,0.41722]
[1765106024111,0.05777064,89243.0,89242.0,0.41922]
[1765106024997,0.05777064,89243.0,89242.0,0.81922]
[1765106024998,0.00013064,89243.0,89242.0,0.81922]
[1765106025317,0.01782,89265.0,89250.0,0.06951]
[1765106025496,0.01782,89265.0,89250.0,0.43031]
[1765106026507,0.00216807,89251.0,89250.0,0.43031]
[1765106027407,0.05764,89265.0,89264.0,0.05642]
[1765106027603,0.31764,89265.0,89264.0,0.08661803]
[1765106028503,0.31864,89265.0,89264.0,0.08661803]
[1765106028703,0.32464,89265.0,89264.0,0.08661803]
[1765106028906,0.32464,89265.0,89264.0,0.05642]
[1765106030007,0.32564,89265.0,89264.0,0.05642]
[1765106033006,0.05764,89262.0,89261.0,0.39099803]
[1765106033206,0.47764,89262.0,89261.0,0.39099803]
[1765106033406,0.47764,89262.0,89261.0,0.3608]
[1765106034214,0.47864,89262.0,89261.0,0.3608]
[1765106034706,0.48164,89262.0,89261.0,0.3608]
[1765106035313,0.05628,89258.0,89257.0,0.03019803]
[1765106035617,0.05628,89257.0,89256.0,0.00016807]
[1765106035915,0.41628,89257.0,89256.0,0.00016807]
[1765106037510,0.41728,89257.0,89256.0,0.00016807]
[1765106038307,0.41928,89257.0,89256.0,0.00016807]
[1765106042221,0.41928,89257.0,89256.0,0.02984807]
[1765106043921,0.41928,89257.0,89256.0,0.05735807]
[1765106057129,0.41928,89257.0,89256.0,0.0875561]
[1765106057924,0.03076,89257.0,89256.0,0.06604807]